[Event "Early-Titled-Tuesday-Blitz-October-17-2023"]
[Site "Chess.com"]
[Date "2023.10.17"]
[Round "11"]
[White "Sokoloco"]
[Black "whitemirrorninja"]
[Result "0-1"]
[WhiteElo "2705"]
[BlackElo "2572"]
[TimeControl "180+1"]
[EndTime "10:09:11 PDT"]
[Termination "whitemirrorninja won on time"]

1. b3 {[%clk 0:00:32.1]} 1... b6 {[%clk 0:02:56.5]} 2. Bb2 {[%clk 0:00:31.8]}
2... Bb7 {[%clk 0:02:57.1]} 3. e3 {[%clk 0:00:32.3]} 3... e6 {[%clk 0:02:56.6]}
4. Nf3 {[%clk 0:00:32.7]} 4... Nf6 {[%clk 0:02:56.4]} 5. d4 {[%clk 0:00:33.1]}
5... Be7 {[%clk 0:02:56.4]} 6. Bd3 {[%clk 0:00:32.7]} 6... O-O {[%clk
0:02:56.1]} 7. O-O {[%clk 0:00:33.2]} 7... c5 {[%clk 0:02:56.6]} 8. Nbd2 {[%clk
0:00:33.6]} 8... cxd4 {[%clk 0:02:54.5]} 9. exd4 {[%clk 0:00:33.7]} 9... Nc6
{[%clk 0:02:54.9]} 10. a3 {[%clk 0:00:32.2]} 10... d5 {[%clk 0:02:54]} 11. Ne5
{[%clk 0:00:32.1]} 11... Nxe5 {[%clk 0:02:46.7]} 12. dxe5 {[%clk 0:00:33]} 12...
Nd7 {[%clk 0:02:47.1]} 13. Nf3 {[%clk 0:00:33.6]} 13... Re8 {[%clk 0:02:45.5]}
14. Qd2 {[%clk 0:00:29.4]} 14... Nf8 {[%clk 0:02:45.3]} 15. Nd4 {[%clk
0:00:27.5]} 15... Qc8 {[%clk 0:02:37.1]} 16. Qe2 {[%clk 0:00:26.1]} 16... a5
{[%clk 0:02:26.7]} 17. f4 {[%clk 0:00:21.6]} 17... Ba6 {[%clk 0:02:25.3]} 18. f5
{[%clk 0:00:20.7]} 18... Bxd3 {[%clk 0:02:24.4]} 19. cxd3 {[%clk 0:00:21.6]}
19... exf5 {[%clk 0:02:19.2]} 20. Nxf5 {[%clk 0:00:22.1]} 20... Ng6 {[%clk
0:02:14.5]} 21. Qf3 {[%clk 0:00:15.3]} 21... Qe6 {[%clk 0:02:09.5]} 22. Nd4
{[%clk 0:00:14.2]} 22... Nxe5 {[%clk 0:02:09.1]} 23. Qg3 {[%clk 0:00:09.7]}
23... Qg4 {[%clk 0:01:33.4]} 24. Nf5 {[%clk 0:00:03.4]} 24... Qxg3 {[%clk
0:01:29]} 25. hxg3 {[%clk 0:00:04.3]} 25... Bf6 {[%clk 0:01:25.7]} 26. Rad1
{[%clk 0:00:04.1]} 26... Re6 {[%clk 0:01:22.5]} 27. Nd4 {[%clk 0:00:03.7]} 27...
Ree8 {[%clk 0:01:18.1]} 28. Nb5 {[%clk 0:00:03.6]} 28... Rec8 {[%clk 0:01:11.8]}
29. Bd4 {[%clk 0:00:03.7]} 29... Rc6 {[%clk 0:01:06.3]} 30. Rfe1 {[%clk
0:00:01.5]} 30... Nd7 {[%clk 0:01:00.5]} 31. Bxf6 {[%clk 0:00:02.4]} 31... Nxf6
{[%clk 0:01:00.5]} 32. Re5 {[%clk 0:00:02.8]} 32... Re6 {[%clk 0:00:58.8]} 33.
Rde1 {[%clk 0:00:02.9]} 33... Rae8 {[%clk 0:00:57.5]} 34. Rxe6 {[%clk
0:00:03.4]} 34... Rxe6 {[%clk 0:00:56.7]} 35. Rc1 {[%clk 0:00:04.3]} 35... h5
{[%clk 0:00:54.7]} 36. Kf2 {[%clk 0:00:04.3]} 36... Ng4+ {[%clk 0:00:54.7]} 37.
Kf3 {[%clk 0:00:04.6]} 37... g5 {[%clk 0:00:50.3]} 0-1

[Event "Early-Titled-Tuesday-Blitz-October-17-2023"]
[Site "Chess.com"]
[Date "2023.10.17"]
[Round "11"]
[White "jcibarra"]
[Black "jk13"]
[Result "1-0"]
[WhiteElo "2886"]
[BlackElo "2686"]
[TimeControl "180+1"]
[EndTime "10:09:12 PDT"]
[Termination "jcibarra won by resignation"]

1. e4 {[%clk 0:03:00.9]} 1... e5 {[%clk 0:02:57.8]} 2. Nf3 {[%clk 0:03:01.1]}
2... Nc6 {[%clk 0:02:57.6]} 3. Bb5 {[%clk 0:03:01.7]} 3... a6 {[%clk 0:02:57.4]}
4. Bxc6 {[%clk 0:03:01.5]} 4... dxc6 {[%clk 0:02:57.2]} 5. O-O {[%clk 0:03:02]}
5... f6 {[%clk 0:02:57.8]} 6. d4 {[%clk 0:03:02.1]} 6... Bg4 {[%clk 0:02:58.4]}
7. c3 {[%clk 0:03:00.1]} 7... Qe7 {[%clk 0:02:58.1]} 8. dxe5 {[%clk 0:02:57.6]}
8... fxe5 {[%clk 0:02:58]} 9. h3 {[%clk 0:02:57.1]} 9... Bh5 {[%clk 0:02:57.6]}
10. Qd3 {[%clk 0:02:44]} 10... Qd6 {[%clk 0:02:41.8]} 11. Qe3 {[%clk 0:02:43.6]}
11... O-O-O {[%clk 0:02:32.6]} 12. Nbd2 {[%clk 0:02:35.9]} 12... Qf6 {[%clk
0:01:52.1]} 13. Qa7 {[%clk 0:02:30.6]} 13... Bd6 {[%clk 0:01:18.9]} 14. Qa8+
{[%clk 0:02:24.9]} 14... Kd7 {[%clk 0:01:19.5]} 15. Qxb7 {[%clk 0:02:25.2]}
15... Ne7 {[%clk 0:01:15.7]} 16. Qxa6 {[%clk 0:02:18.9]} 16... g5 {[%clk
0:01:14.3]} 17. Nh2 {[%clk 0:02:01.7]} 17... Rhf8 {[%clk 0:01:07.4]} 18. Nb3
{[%clk 0:01:56.8]} 18... Ng6 {[%clk 0:00:58.6]} 19. g4 {[%clk 0:01:40.6]} 19...
Nf4 {[%clk 0:00:58.4]} 20. Bxf4 {[%clk 0:01:33.3]} 20... exf4 {[%clk 0:00:54.2]}
21. gxh5 {[%clk 0:01:32]} 21... f3 {[%clk 0:00:54.7]} 22. Rad1 {[%clk
0:01:11.1]} 22... g4 {[%clk 0:00:39.3]} 23. Nc5+ {[%clk 0:01:00]} 23... Ke7
{[%clk 0:00:37.7]} 24. e5 {[%clk 0:00:59.1]} 24... Bxe5 {[%clk 0:00:34.7]} 25.
Nxg4 {[%clk 0:00:51]} 25... Rg8 {[%clk 0:00:20.9]} 26. Rxd8 {[%clk 0:00:31.5]}
26... Rxg4+ {[%clk 0:00:17.9]} 27. hxg4 {[%clk 0:00:29.9]} 27... Qh4 {[%clk
0:00:14.6]} 28. Re8+ {[%clk 0:00:20.4]} 28... Kxe8 {[%clk 0:00:12.1]} 29. Qc8+
{[%clk 0:00:21]} 29... Ke7 {[%clk 0:00:09.4]} 30. Qe6+ {[%clk 0:00:21.5]} 30...
Kf8 {[%clk 0:00:08.7]} 31. Nd7+ {[%clk 0:00:21.7]} 31... Kg7 {[%clk 0:00:08.1]}
32. Qxe5+ {[%clk 0:00:22.3]} 32... Kh6 {[%clk 0:00:08.5]} 33. Qf6+ {[%clk
0:00:22.3]} 1-0

[Event "Early-Titled-Tuesday-Blitz-October-17-2023"]
[Site "Chess.com"]
[Date "2023.10.17"]
[Round "11"]
[White "invisible_s0ul"]
[Black "Kotofeyca"]
[Result "0-1"]
[WhiteElo "2265"]
[BlackElo "2398"]
[TimeControl "180+1"]
[EndTime "10:09:14 PDT"]
[Termination "Kotofeyca won by resignation"]

1. e4 {[%clk 0:03:00.9]} 1... c5 {[%clk 0:02:59.7]} 2. Nf3 {[%clk 0:03:01.2]}
2... d6 {[%clk 0:03:00.1]} 3. d4 {[%clk 0:03:02.1]} 3... cxd4 {[%clk 0:03:00.7]}
4. Nxd4 {[%clk 0:03:02.9]} 4... Nf6 {[%clk 0:03:01.2]} 5. Nc3 {[%clk 0:03:03.6]}
5... a6 {[%clk 0:03:01.8]} 6. Be3 {[%clk 0:03:00.8]} 6... Ng4 {[%clk 0:03:01.4]}
7. Be2 {[%clk 0:02:29.1]} 7... Nxe3 {[%clk 0:03:00.5]} 8. fxe3 {[%clk 0:02:30]}
8... g6 {[%clk 0:02:50.6]} 9. O-O {[%clk 0:02:25.8]} 9... Bh6 {[%clk 0:02:47.7]}
10. Qd3 {[%clk 0:02:15.5]} 10... O-O {[%clk 0:02:47]} 11. a4 {[%clk 0:02:15.7]}
11... Nd7 {[%clk 0:02:46]} 12. b4 {[%clk 0:02:05.8]} 12... Ne5 {[%clk
0:02:41.1]} 13. Qd2 {[%clk 0:02:01.6]} 13... Be6 {[%clk 0:02:05.6]} 14. Nd5
{[%clk 0:01:55.1]} 14... Rc8 {[%clk 0:01:55.2]} 15. Nxe6 {[%clk 0:01:11.8]}
15... fxe6 {[%clk 0:01:54.8]} 16. Nf4 {[%clk 0:01:12.4]} 16... Qd7 {[%clk
0:01:38]} 17. b5 {[%clk 0:00:53.8]} 17... a5 {[%clk 0:01:25.2]} 18. Qxa5 {[%clk
0:00:46.9]} 18... Rxc2 {[%clk 0:01:22.4]} 19. Bf3 {[%clk 0:00:42.9]} 19... Bxf4
{[%clk 0:01:12.2]} 20. exf4 {[%clk 0:00:39.7]} 20... Rxf4 {[%clk 0:01:13.1]} 21.
Qe1 {[%clk 0:00:13.7]} 21... Qc7 {[%clk 0:00:59.5]} 22. Qg3 {[%clk 0:00:11.3]}
22... Rf8 {[%clk 0:00:49.1]} 23. a5 {[%clk 0:00:09.2]} 23... Qc5+ {[%clk
0:00:48.1]} 24. Kh1 {[%clk 0:00:09.7]} 24... Qxb5 {[%clk 0:00:46.5]} 25. Rfb1
{[%clk 0:00:03.3]} 25... Rb2 {[%clk 0:00:46]} 26. Rxb2 {[%clk 0:00:02.7]} 26...
Qxb2 {[%clk 0:00:46.9]} 27. Rf1 {[%clk 0:00:03.2]} 27... Qa3 {[%clk 0:00:42.2]}
28. Qh3 {[%clk 0:00:02.6]} 28... Rf6 {[%clk 0:00:38.4]} 29. Qg3 {[%clk
0:00:01.5]} 29... Qxa5 {[%clk 0:00:38]} 30. h3 {[%clk 0:00:01.6]} 30... Qb5
{[%clk 0:00:36.7]} 31. Kh2 {[%clk 0:00:02.1]} 31... Qxf1 {[%clk 0:00:35.8]} 32.
Bg4 {[%clk 0:00:02.1]} 32... Nxg4+ {[%clk 0:00:31.9]} 33. Qxg4 {[%clk 0:00:03]}
0-1

[Event "Early-Titled-Tuesday-Blitz-October-17-2023"]
[Site "Chess.com"]
[Date "2023.10.17"]
[Round "11"]
[White "Herman-NY"]
[Black "HanSchut"]
[Result "1-0"]
[WhiteElo "2527"]
[BlackElo "2321"]
[TimeControl "180+1"]
[EndTime "10:09:17 PDT"]
[Termination "Herman-NY won by resignation"]

1. e4 {[%clk 0:02:56.8]} 1... c5 {[%clk 0:02:55.5]} 2. Nf3 {[%clk 0:02:57.1]}
2... d6 {[%clk 0:02:55.3]} 3. d4 {[%clk 0:02:57.7]} 3... cxd4 {[%clk 0:02:55.1]}
4. Nxd4 {[%clk 0:02:58.6]} 4... f6 {[%clk 0:02:55.1]} 5. Bc4 {[%clk 0:02:55.1]}
5... Nc6 {[%clk 0:02:33.9]} 6. Ne6 {[%clk 0:02:39.8]} 6... Bxe6 {[%clk 0:02:28]}
7. Bxe6 {[%clk 0:02:40.7]} 7... Qa5+ {[%clk 0:02:18.3]} 8. Nc3 {[%clk
0:02:33.7]} 8... Qe5 {[%clk 0:02:15.7]} 9. Bc4 {[%clk 0:01:55.5]} 9... f5 {[%clk
0:02:07.5]} 10. O-O {[%clk 0:01:08.9]} 10... fxe4 {[%clk 0:02:00.8]} 11. Nd5
{[%clk 0:01:09.2]} 11... O-O-O {[%clk 0:01:51.9]} 12. Bf4 {[%clk 0:00:55.1]}
12... Qd4 {[%clk 0:01:51.7]} 13. Qe2 {[%clk 0:00:55]} 13... Nf6 {[%clk 0:00:53]}
14. c3 {[%clk 0:00:30.7]} 14... Qc5 {[%clk 0:00:31.9]} 15. b4 {[%clk 0:00:30.5]}
15... Nxd5 {[%clk 0:00:31.9]} 16. bxc5 {[%clk 0:00:27.8]} 16... Nxf4 {[%clk
0:00:32.6]} 17. Qg4+ {[%clk 0:00:27.1]} 17... e6 {[%clk 0:00:29.2]} 18. Qxf4
{[%clk 0:00:26.8]} 18... d5 {[%clk 0:00:29.9]} 19. Bb5 {[%clk 0:00:25.6]} 19...
Bxc5 {[%clk 0:00:30]} 20. Bxc6 {[%clk 0:00:25.3]} 20... bxc6 {[%clk 0:00:30]}
21. Rab1 {[%clk 0:00:25.1]} 21... Bd6 {[%clk 0:00:29]} 22. Qg4 {[%clk 0:00:25]}
22... Rde8 {[%clk 0:00:26.3]} 23. Qxg7 {[%clk 0:00:24]} 23... Bc7 {[%clk
0:00:26.8]} 24. Rb3 {[%clk 0:00:17.6]} 24... Rhg8 {[%clk 0:00:26.8]} 25. Qd4
{[%clk 0:00:17.2]} 25... e5 {[%clk 0:00:25.2]} 26. Qxa7 {[%clk 0:00:16.8]} 26...
Rg7 {[%clk 0:00:22.8]} 27. Qa6+ {[%clk 0:00:16.2]} 27... Kd8 {[%clk 0:00:21.9]}
28. Qxc6 {[%clk 0:00:15.7]} 28... Reg8 {[%clk 0:00:20.6]} 29. Qxd5+ {[%clk
0:00:15]} 29... Kc8 {[%clk 0:00:19.8]} 30. Qe6+ {[%clk 0:00:13.6]} 1-0

[Event "Early-Titled-Tuesday-Blitz-October-17-2023"]
[Site "Chess.com"]
[Date "2023.10.17"]
[Round "11"]
[White "Mourinho_Jose"]
[Black "Ramosha"]
[Result "0-1"]
[WhiteElo "2515"]
[BlackElo "2629"]
[TimeControl "180+1"]
[EndTime "10:09:19 PDT"]
[Termination "Ramosha won by resignation"]

1. Nf3 {[%clk 0:03:00.9]} 1... c5 {[%clk 0:02:58.9]} 2. g3 {[%clk 0:03:00.9]}
2... Nc6 {[%clk 0:02:58.5]} 3. d4 {[%clk 0:03:01.1]} 3... cxd4 {[%clk
0:02:58.5]} 4. Nxd4 {[%clk 0:03:02]} 4... Nxd4 {[%clk 0:02:57.9]} 5. Qxd4 {[%clk
0:03:01.5]} 5... Nf6 {[%clk 0:02:58.1]} 6. c4 {[%clk 0:03:01.4]} 6... d6 {[%clk
0:02:58]} 7. Nc3 {[%clk 0:03:00.9]} 7... g6 {[%clk 0:02:57.2]} 8. Bg2 {[%clk
0:03:00.8]} 8... Bg7 {[%clk 0:02:57.3]} 9. O-O {[%clk 0:03:01.3]} 9... O-O
{[%clk 0:02:57.2]} 10. Qd2 {[%clk 0:02:55.9]} 10... Rb8 {[%clk 0:02:56.9]} 11.
b3 {[%clk 0:02:55.9]} 11... a6 {[%clk 0:02:56]} 12. Bb2 {[%clk 0:02:53.4]} 12...
b5 {[%clk 0:02:55.3]} 13. Nd5 {[%clk 0:02:37.1]} 13... Nxd5 {[%clk 0:02:43.3]}
14. Bxg7 {[%clk 0:02:29.5]} 14... Kxg7 {[%clk 0:02:42.6]} 15. cxd5 {[%clk
0:02:21.2]} 15... a5 {[%clk 0:02:39.3]} 16. Rac1 {[%clk 0:02:19.4]} 16... Bd7
{[%clk 0:02:36.6]} 17. Rc2 {[%clk 0:02:08.8]} 17... Qb6 {[%clk 0:02:34.7]} 18.
Rfc1 {[%clk 0:02:07.7]} 18... Rb7 {[%clk 0:02:33.2]} 19. h4 {[%clk 0:01:44]}
19... h6 {[%clk 0:02:29.8]} 20. Bf3 {[%clk 0:01:43.2]} 20... b4 {[%clk
0:02:26.9]} 21. Kg2 {[%clk 0:01:40.9]} 21... Bf5 {[%clk 0:02:25.7]} 22. Rc6
{[%clk 0:01:39.5]} 22... Qb5 {[%clk 0:02:23.9]} 23. Rc7 {[%clk 0:01:33.3]} 23...
Rfb8 {[%clk 0:02:14.7]} 24. Qe3 {[%clk 0:01:22.5]} 24... Qe8 {[%clk 0:02:01.8]}
25. Qd4+ {[%clk 0:01:00]} 25... f6 {[%clk 0:02:01.4]} 26. g4 {[%clk 0:00:58.4]}
26... Bd7 {[%clk 0:02:01]} 27. g5 {[%clk 0:00:58.6]} 27... hxg5 {[%clk
0:02:00.6]} 28. hxg5 {[%clk 0:00:59.5]} 28... Qd8 {[%clk 0:01:54.5]} 29. gxf6+
{[%clk 0:00:53.1]} 29... exf6 {[%clk 0:01:54.2]} 30. Rxb7 {[%clk 0:00:49.4]}
30... Rxb7 {[%clk 0:01:54.5]} 31. Qf4 {[%clk 0:00:45.6]} 31... g5 {[%clk
0:01:54]} 32. Qe4 {[%clk 0:00:27]} 32... Be8 {[%clk 0:01:50.8]} 33. Bg4 {[%clk
0:00:23.5]} 33... Bg6 {[%clk 0:01:46.1]} 34. Bf5 {[%clk 0:00:22.9]} 34... Re7
{[%clk 0:01:45.3]} 35. Qd3 {[%clk 0:00:23.1]} 35... Bf7 {[%clk 0:01:35.4]} 36.
Rh1 {[%clk 0:00:21.9]} 36... Qe8 {[%clk 0:00:57.4]} 37. Qh3 {[%clk 0:00:14.6]}
37... Bxd5+ {[%clk 0:00:57.2]} 38. f3 {[%clk 0:00:13]} 38... Rxe2+ {[%clk
0:00:56.4]} 39. Kg3 {[%clk 0:00:13.6]} 39... Qe5+ {[%clk 0:00:56.2]} 40. Kg4
{[%clk 0:00:14.5]} 40... Qf4+ {[%clk 0:00:56.6]} 41. Kh5 {[%clk 0:00:15.4]}
41... Bf7+ {[%clk 0:00:57.2]} 0-1

[Event "Early-Titled-Tuesday-Blitz-October-17-2023"]
[Site "Chess.com"]
[Date "2023.10.17"]
[Round "11"]
[White "Iball95"]
[Black "Kildepiotr"]
[Result "1-0"]
[WhiteElo "2841"]
[BlackElo "2655"]
[TimeControl "180+1"]
[EndTime "10:09:20 PDT"]
[Termination "Iball95 won by resignation"]

1. e4 {[%clk 0:03:00]} 1... g6 {[%clk 0:02:57.9]} 2. d4 {[%clk 0:03:00.6]} 2...
Bg7 {[%clk 0:02:58.5]} 3. Nc3 {[%clk 0:03:01.1]} 3... c6 {[%clk 0:02:59.2]} 4.
Nf3 {[%clk 0:03:01.6]} 4... d6 {[%clk 0:02:59.5]} 5. Be3 {[%clk 0:03:00.9]} 5...
Nf6 {[%clk 0:02:59.5]} 6. Qd2 {[%clk 0:03:00.8]} 6... b5 {[%clk 0:02:58.6]} 7.
Bd3 {[%clk 0:03:01.2]} 7... Nbd7 {[%clk 0:02:54.8]} 8. Bh6 {[%clk 0:02:58.2]}
8... Bxh6 {[%clk 0:02:54.5]} 9. Qxh6 {[%clk 0:02:59.1]} 9... e5 {[%clk
0:02:54.8]} 10. dxe5 {[%clk 0:02:58]} 10... dxe5 {[%clk 0:02:54.7]} 11. h3
{[%clk 0:02:55.4]} 11... Qe7 {[%clk 0:02:54.5]} 12. O-O-O {[%clk 0:02:53.9]}
12... Nc5 {[%clk 0:02:53.4]} 13. Bxb5 {[%clk 0:02:21.9]} 13... cxb5 {[%clk
0:02:47]} 14. Nxb5 {[%clk 0:02:22.8]} 14... Ncxe4 {[%clk 0:02:42]} 15. Rhe1
{[%clk 0:02:13.7]} 15... Be6 {[%clk 0:02:29.6]} 16. Nxe5 {[%clk 0:02:08.3]}
16... Qc5 {[%clk 0:02:26.7]} 17. Ng4 {[%clk 0:00:53.1]} 17... Nxg4 {[%clk
0:01:51.3]} 18. hxg4 {[%clk 0:00:49.4]} 18... Qxb5 {[%clk 0:01:45.5]} 19. Rxe4
{[%clk 0:00:49.5]} 19... Rd8 {[%clk 0:01:39.8]} 20. Rde1 {[%clk 0:00:42.4]}
20... Qd5 {[%clk 0:01:33.9]} 21. b3 {[%clk 0:00:37.4]} 21... Rd6 {[%clk
0:00:47.8]} 22. f4 {[%clk 0:00:34.9]} 22... Kd7 {[%clk 0:00:44.9]} 23. f5 {[%clk
0:00:20.7]} 23... gxf5 {[%clk 0:00:42.8]} 24. gxf5 {[%clk 0:00:21.6]} 24... Qxf5
{[%clk 0:00:42]} 25. Rf4 {[%clk 0:00:22.4]} 25... Qg6 {[%clk 0:00:39.7]} 26. Qh4
{[%clk 0:00:20]} 26... Rc8 {[%clk 0:00:39.1]} 27. Rf2 {[%clk 0:00:20.4]} 27...
Rd5 {[%clk 0:00:36.3]} 28. Qa4+ {[%clk 0:00:20.6]} 28... Kd8 {[%clk 0:00:35]}
29. Qxa7 {[%clk 0:00:20.7]} 29... Qg5+ {[%clk 0:00:32.1]} 30. Kb1 {[%clk
0:00:19.8]} 30... Ke8 {[%clk 0:00:29.2]} 31. Qxf7+ {[%clk 0:00:17.8]} 31... Kd8
{[%clk 0:00:27.3]} 32. Qxe6 {[%clk 0:00:17.6]} 32... Qg7 {[%clk 0:00:18.6]} 1-0

[Event "Early-Titled-Tuesday-Blitz-October-17-2023"]
[Site "Chess.com"]
[Date "2023.10.17"]
[Round "11"]
[White "BardArtem"]
[Black "WPWPWP-2015"]
[Result "1-0"]
[WhiteElo "2746"]
[BlackElo "2565"]
[TimeControl "180+1"]
[EndTime "10:09:20 PDT"]
[Termination "BardArtem won by resignation"]

1. e4 {[%clk 0:02:57.9]} 1... c5 {[%clk 0:02:59.3]} 2. c3 {[%clk 0:02:56.5]}
2... e5 {[%clk 0:02:58.6]} 3. Nf3 {[%clk 0:02:54.6]} 3... Nc6 {[%clk 0:02:58.3]}
4. Bc4 {[%clk 0:02:53.4]} 4... d6 {[%clk 0:02:56.3]} 5. d4 {[%clk 0:02:49]} 5...
cxd4 {[%clk 0:02:55.9]} 6. cxd4 {[%clk 0:02:49.9]} 6... Be7 {[%clk 0:02:50.3]}
7. O-O {[%clk 0:02:47.8]} 7... exd4 {[%clk 0:02:47.1]} 8. Nxd4 {[%clk
0:02:47.6]} 8... Nxd4 {[%clk 0:02:47]} 9. Qxd4 {[%clk 0:02:48.5]} 9... Bf6
{[%clk 0:02:45.4]} 10. Qd3 {[%clk 0:02:46.5]} 10... Ne7 {[%clk 0:02:42.6]} 11.
Nc3 {[%clk 0:02:44.7]} 11... O-O {[%clk 0:02:41.9]} 12. Rd1 {[%clk 0:02:40.1]}
12... a6 {[%clk 0:02:25.2]} 13. Qxd6 {[%clk 0:02:37.3]} 13... Qxd6 {[%clk
0:02:15.4]} 14. Rxd6 {[%clk 0:02:38.2]} 14... Be5 {[%clk 0:02:12]} 15. Rd1
{[%clk 0:02:31.7]} 15... b5 {[%clk 0:02:10.6]} 16. Nd5 {[%clk 0:02:27.9]} 16...
Nc6 {[%clk 0:02:08.8]} 17. Bf1 {[%clk 0:02:20.9]} 17... Bg4 {[%clk 0:02:04.2]}
18. f3 {[%clk 0:02:18.2]} 18... Be6 {[%clk 0:02:03.3]} 19. a4 {[%clk 0:02:15.1]}
19... b4 {[%clk 0:02:00.6]} 20. Rb1 {[%clk 0:02:07.5]} 20... b3 {[%clk
0:01:58.2]} 21. Be3 {[%clk 0:02:05.8]} 21... Rfd8 {[%clk 0:01:40.7]} 22. f4
{[%clk 0:01:42.3]} 22... Bd6 {[%clk 0:01:40.1]} 23. e5 {[%clk 0:01:30.9]} 23...
Bf8 {[%clk 0:01:35.3]} 24. Nc7 {[%clk 0:01:28.7]} 24... Bf5 {[%clk 0:01:21]} 25.
Nxa8 {[%clk 0:01:17.3]} 25... Bxb1 {[%clk 0:01:14.3]} 26. Rxd8 {[%clk
0:01:16.4]} 26... Nxd8 {[%clk 0:01:14.4]} 27. Bxa6 {[%clk 0:01:16.7]} 27... Nc6
{[%clk 0:01:08.5]} 28. Bb5 {[%clk 0:01:14.7]} 28... Na5 {[%clk 0:00:55.3]} 29.
Bd2 {[%clk 0:01:03]} 29... Nb7 {[%clk 0:00:50.7]} 30. a5 {[%clk 0:01:03.2]}
30... Be4 {[%clk 0:00:47.9]} 31. a6 {[%clk 0:01:02.4]} 31... Nd6 {[%clk
0:00:34.7]} 32. exd6 {[%clk 0:01:03.3]} 32... Bxd6 {[%clk 0:00:34.4]} 33. Be3
{[%clk 0:00:42.7]} 33... Bxa8 {[%clk 0:00:32.1]} 34. a7 {[%clk 0:00:43.3]} 34...
Be7 {[%clk 0:00:18.6]} 35. Be2 {[%clk 0:00:42.2]} 35... Bf6 {[%clk 0:00:17.5]}
36. Bf3 {[%clk 0:00:42.2]} 36... Bxb2 {[%clk 0:00:14.6]} 37. Bxa8 {[%clk
0:00:40.2]} 37... g6 {[%clk 0:00:09.3]} 38. Bd5 {[%clk 0:00:38.6]} 1-0

[Event "Early-Titled-Tuesday-Blitz-October-17-2023"]
[Site "Chess.com"]
[Date "2023.10.17"]
[Round "11"]
[White "averageFM"]
[Black "PeshkaCh"]
[Result "0-1"]
[WhiteElo "2605"]
[BlackElo "2819"]
[TimeControl "180+1"]
[EndTime "10:09:22 PDT"]
[Termination "PeshkaCh won on time"]

1. e4 {[%clk 0:02:58.9]} 1... e5 {[%clk 0:03:00.1]} 2. Nf3 {[%clk 0:02:51.2]}
2... Nc6 {[%clk 0:03:00.1]} 3. d4 {[%clk 0:02:35.3]} 3... exd4 {[%clk
0:03:00.1]} 4. Nxd4 {[%clk 0:02:30.7]} 4... Nf6 {[%clk 0:03:00.3]} 5. Nxc6
{[%clk 0:02:30.1]} 5... bxc6 {[%clk 0:03:00.8]} 6. e5 {[%clk 0:02:30.1]} 6...
Nd5 {[%clk 0:02:54.5]} 7. c4 {[%clk 0:02:28.2]} 7... Nb6 {[%clk 0:02:55]} 8. Bd3
{[%clk 0:02:21.7]} 8... g6 {[%clk 0:02:54.3]} 9. O-O {[%clk 0:02:17.4]} 9... Bg7
{[%clk 0:02:54.3]} 10. f4 {[%clk 0:02:17.3]} 10... O-O {[%clk 0:02:53.2]} 11.
Nc3 {[%clk 0:02:16.2]} 11... d6 {[%clk 0:02:53.5]} 12. exd6 {[%clk 0:02:02.6]}
12... cxd6 {[%clk 0:02:54.4]} 13. Qf3 {[%clk 0:02:00.2]} 13... Ba6 {[%clk
0:02:29.3]} 14. f5 {[%clk 0:01:50]} 14... Qf6 {[%clk 0:01:49.6]} 15. Ne4 {[%clk
0:01:03.2]} 15... Qd4+ {[%clk 0:01:28.2]} 16. Kh1 {[%clk 0:01:03.1]} 16... Nxc4
{[%clk 0:01:28.7]} 17. f6 {[%clk 0:00:59.9]} 17... Ne5 {[%clk 0:00:37.7]} 18.
fxg7 {[%clk 0:00:17.1]} 18... Nxf3 {[%clk 0:00:33.5]} 19. Bxa6 {[%clk
0:00:12.6]} 19... Rfe8 {[%clk 0:00:22.2]} 20. gxf3 {[%clk 0:00:09.3]} 20... Rxe4
{[%clk 0:00:20.7]} 21. fxe4 {[%clk 0:00:09.1]} 21... Qxe4+ {[%clk 0:00:21.6]}
22. Kg1 {[%clk 0:00:09]} 22... Qg4+ {[%clk 0:00:21.6]} 23. Kh1 {[%clk
0:00:08.7]} 23... Re8 {[%clk 0:00:18.9]} 24. Bf4 {[%clk 0:00:07.1]} 24... Kxg7
{[%clk 0:00:15.7]} 25. Bxd6 {[%clk 0:00:05.3]} 25... Qa4 {[%clk 0:00:14.3]} 26.
Bb7 {[%clk 0:00:02.4]} 26... Re2 {[%clk 0:00:10.9]} 0-1

[Event "Early-Titled-Tuesday-Blitz-October-17-2023"]
[Site "Chess.com"]
[Date "2023.10.17"]
[Round "11"]
[White "KNVB"]
[Black "verrbaa"]
[Result "0-1"]
[WhiteElo "2634"]
[BlackElo "2454"]
[TimeControl "180+1"]
[EndTime "10:09:25 PDT"]
[Termination "verrbaa won by checkmate"]

1. d4 {[%clk 0:02:44]} 1... Nf6 {[%clk 0:02:59.3]} 2. Nc3 {[%clk 0:02:36.9]}
2... d5 {[%clk 0:02:57.6]} 3. Bf4 {[%clk 0:02:33.3]} 3... a6 {[%clk 0:02:51.6]}
4. e3 {[%clk 0:02:32.7]} 4... e6 {[%clk 0:02:50.6]} 5. g4 {[%clk 0:02:30.7]}
5... c5 {[%clk 0:02:46.3]} 6. g5 {[%clk 0:02:29.5]} 6... Nfd7 {[%clk 0:02:46.4]}
7. Qg4 {[%clk 0:02:30.2]} 7... cxd4 {[%clk 0:02:37.8]} 8. exd4 {[%clk
0:02:29.9]} 8... Nc6 {[%clk 0:02:38.2]} 9. O-O-O {[%clk 0:02:29.3]} 9... Qa5
{[%clk 0:02:21.9]} 10. Qg3 {[%clk 0:02:03.5]} 10... Bb4 {[%clk 0:01:58.4]} 11.
Nge2 {[%clk 0:02:00.2]} 11... O-O {[%clk 0:01:42.8]} 12. h4 {[%clk 0:01:26]}
12... Nb6 {[%clk 0:01:26.5]} 13. Bc7 {[%clk 0:01:14.1]} 13... Bd7 {[%clk
0:01:19.3]} 14. h5 {[%clk 0:01:07.5]} 14... Rac8 {[%clk 0:01:09.2]} 15. g6
{[%clk 0:01:04]} 15... fxg6 {[%clk 0:01:08.9]} 16. hxg6 {[%clk 0:01:03.8]} 16...
h6 {[%clk 0:01:09.2]} 17. Bh3 {[%clk 0:00:37.2]} 17... Ne7 {[%clk 0:00:22.6]}
18. Kb1 {[%clk 0:00:17.2]} 18... Nf5 {[%clk 0:00:22.2]} 19. Qe5 {[%clk
0:00:03.5]} 19... Rxc7 {[%clk 0:00:18.5]} 20. Qxc7 {[%clk 0:00:04.4]} 20... Bd6
{[%clk 0:00:18.6]} 21. Qxb7 {[%clk 0:00:04]} 21... Rb8 {[%clk 0:00:17.3]} 22.
Qa7 {[%clk 0:00:04.3]} 22... Be8 {[%clk 0:00:07.2]} 23. Bxf5 {[%clk 0:00:02.7]}
23... exf5 {[%clk 0:00:06.8]} 24. Rh3 {[%clk 0:00:02.7]} 24... Nc4 {[%clk
0:00:06.4]} 25. b3 {[%clk 0:00:03]} 25... Qa3 {[%clk 0:00:05.5]} 26. Na4 {[%clk
0:00:01.9]} 26... Qxa4 {[%clk 0:00:04.6]} 27. Kc1 {[%clk 0:00:01.1]} 27... Qa3+
{[%clk 0:00:04.7]} 28. Kb1 {[%clk 0:00:01.6]} 28... Qb2# {[%clk 0:00:05.2]} 0-1